[Event "*** Titled Tuesday Blitz"]
[Site "Chess.com"]
[Date "2020.05.12"]
[Round "6"]
[White "TokChess"]
[Black "Mbneu"]
[Result "0-1"]
[WhiteElo "2376"]
[BlackElo "2266"]
[TimeControl "180+1"]
[EndTime "11:06:49 PDT"]
[Termination "Mbneu won by resignation"]

1. Nf3 {[%clk 0:03:00.9]} 1... Nf6 {[%clk 0:02:57.4]} 2. g3 {[%clk 0:03:00.9]}
2... c5 {[%clk 0:02:57.3]} 3. Bg2 {[%clk 0:03:01]} 3... d5 {[%clk 0:02:57.5]} 4.
O-O {[%clk 0:03:00.4]} 4... Nc6 {[%clk 0:02:57.1]} 5. c4 {[%clk 0:03:00.4]} 5...
e6 {[%clk 0:02:56.8]} 6. cxd5 {[%clk 0:02:59.6]} 6... exd5 {[%clk 0:02:57.7]} 7.
d4 {[%clk 0:02:59.5]} 7... Be7 {[%clk 0:02:58.2]} 8. Nc3 {[%clk 0:02:59.2]} 8...
O-O {[%clk 0:02:58.6]} 9. dxc5 {[%clk 0:02:59.2]} 9... d4 {[%clk 0:02:59.5]} 10.
Na4 {[%clk 0:02:47.1]} 10... Bf5 {[%clk 0:02:59.8]} 11. Ne1 {[%clk 0:02:37.1]}
11... Be4 {[%clk 0:02:57.3]} 12. Bxe4 {[%clk 0:02:29.1]} 12... Nxe4 {[%clk
0:02:58.2]} 13. Nd3 {[%clk 0:02:29.6]} 13... h5 {[%clk 0:02:54.2]} 14. Qc2
{[%clk 0:02:13.6]} 14... h4 {[%clk 0:02:51]} 15. b4 {[%clk 0:02:10]} 15... Re8
{[%clk 0:02:41.5]} 16. Bf4 {[%clk 0:01:47.5]} 16... Bf6 {[%clk 0:02:27.4]} 17.
Rfd1 {[%clk 0:01:39.9]} 17... Qd5 {[%clk 0:02:05.1]} 18. f3 {[%clk 0:01:29.9]}
18... hxg3 {[%clk 0:01:50.2]} 19. hxg3 {[%clk 0:01:11.2]} 19... Ng5 {[%clk
0:01:38.8]} 20. Kg2 {[%clk 0:00:59.5]} 20... Qf5 {[%clk 0:01:33.1]} 21. Bxg5
{[%clk 0:00:52.7]} 21... Bxg5 {[%clk 0:01:28.4]} 22. Nab2 {[%clk 0:00:35.8]}
22... Nxb4 {[%clk 0:01:23.8]} 23. Nxb4 {[%clk 0:00:27.6]} 23... Qxc2 {[%clk
0:01:23]} 24. Nxc2 {[%clk 0:00:27.4]} 24... Rxe2+ {[%clk 0:01:23.6]} 25. Kh3
{[%clk 0:00:27.8]} 25... Rxc2 {[%clk 0:01:22.7]} 26. Nd3 {[%clk 0:00:20.5]}
26... f5 {[%clk 0:01:15.3]} 27. f4 {[%clk 0:00:20]} 27... Bf6 {[%clk 0:01:14.7]}
28. Rab1 {[%clk 0:00:19.2]} 28... b6 {[%clk 0:01:05.7]} 29. cxb6 {[%clk
0:00:15.8]} 29... axb6 {[%clk 0:01:05.4]} 30. Rxb6 {[%clk 0:00:15.7]} 30...
Raxa2 {[%clk 0:01:05.3]} 31. Rh1 {[%clk 0:00:13.8]} 31... Ra8 {[%clk 0:00:56.7]}
32. Rh2 {[%clk 0:00:09.5]} 32... Rxh2+ {[%clk 0:00:54.5]} 33. Kxh2 {[%clk
0:00:09.6]} 33... Ra3 {[%clk 0:00:54.2]} 34. Ne5 {[%clk 0:00:09.7]} 34... Bxe5
{[%clk 0:00:53.6]} 35. fxe5 {[%clk 0:00:10.3]} 35... Re3 {[%clk 0:00:53.9]} 36.
Rd6 {[%clk 0:00:10]} 36... Rxe5 {[%clk 0:00:53.1]} 37. Rxd4 {[%clk 0:00:10.2]}
37... Kf7 {[%clk 0:00:54]} 38. Kh3 {[%clk 0:00:10.3]} 38... Kf6 {[%clk
0:00:54.4]} 39. Kg2 {[%clk 0:00:10.6]} 39... Re4 {[%clk 0:00:54.3]} 40. Rd6+
{[%clk 0:00:09.6]} 40... Kg5 {[%clk 0:00:54.4]} 41. Ra6 {[%clk 0:00:09.3]} 41...
g6 {[%clk 0:00:54.9]} 42. Rb6 {[%clk 0:00:09.3]} 42... Rd4 {[%clk 0:00:55.3]}
43. Ra6 {[%clk 0:00:09.5]} 43... Rd2+ {[%clk 0:00:55]} 44. Kf3 {[%clk
0:00:09.2]} 44... Rd3+ {[%clk 0:00:55.6]} 45. Kg2 {[%clk 0:00:09.4]} 45... Rd7
{[%clk 0:00:55.2]} 46. Kf3 {[%clk 0:00:09.2]} 46... Rf7 {[%clk 0:00:55.3]} 47.
Kg2 {[%clk 0:00:07.5]} 47... Rf6 {[%clk 0:00:55.9]} 48. Ra4 {[%clk 0:00:06.7]}
48... Kh6 {[%clk 0:00:55.8]} 49. Rh4+ {[%clk 0:00:06.3]} 49... Kg5 {[%clk
0:00:55.2]} 50. Ra4 {[%clk 0:00:06.9]} 50... Rc6 {[%clk 0:00:55.6]} 51. Kf3
{[%clk 0:00:04.9]} 51... Kf6 {[%clk 0:00:53.6]} 52. Kg2 {[%clk 0:00:03.8]} 52...
g5 {[%clk 0:00:53.8]} 53. Ra5 {[%clk 0:00:03]} 53... Rc2+ {[%clk 0:00:52.6]} 54.
Kf3 {[%clk 0:00:02.5]} 54... g4+ {[%clk 0:00:52.8]} 55. Ke3 {[%clk 0:00:02.6]}
55... Kg5 {[%clk 0:00:52.3]} 56. Ra8 {[%clk 0:00:01.6]} 56... Rg2 {[%clk
0:00:52]} 57. Rg8+ {[%clk 0:00:01.6]} 57... Kf6 {[%clk 0:00:52]} 58. Kf4 {[%clk
0:00:02]} 58... Rf2+ {[%clk 0:00:51.6]} 59. Ke3 {[%clk 0:00:02.3]} 59... Rf3+
{[%clk 0:00:51.8]} 60. Ke2 {[%clk 0:00:02.8]} 60... Rxg3 {[%clk 0:00:51.9]} 0-1

[Event "*** Titled Tuesday Blitz"]
[Site "Chess.com"]
[Date "2020.05.12"]
[Round "6"]
[White "DaggiGretarsson"]
[Black "slowdgehammer"]
[Result "1-0"]
[WhiteElo "2581"]
[BlackElo "2378"]
[TimeControl "180+1"]
[EndTime "11:06:50 PDT"]
[Termination "DaggiGretarsson won by resignation"]

1. d4 {[%clk 0:02:59.7]} 1... Nf6 {[%clk 0:02:53.5]} 2. c4 {[%clk 0:02:59.3]}
2... g6 {[%clk 0:02:54.2]} 3. Nc3 {[%clk 0:02:58.8]} 3... Bg7 {[%clk 0:02:54.9]}
4. e4 {[%clk 0:02:58.7]} 4... d6 {[%clk 0:02:55.6]} 5. f4 {[%clk 0:02:58.7]}
5... O-O {[%clk 0:02:45.2]} 6. Nf3 {[%clk 0:02:58.6]} 6... c5 {[%clk 0:02:45]}
7. dxc5 {[%clk 0:02:58.3]} 7... Qa5 {[%clk 0:02:44.2]} 8. Bd3 {[%clk 0:02:58.3]}
8... Qxc5 {[%clk 0:02:40.3]} 9. Qe2 {[%clk 0:02:58.4]} 9... Bg4 {[%clk
0:02:38.7]} 10. Be3 {[%clk 0:02:58]} 10... Qa5 {[%clk 0:02:05.9]} 11. O-O {[%clk
0:02:57.8]} 11... Nc6 {[%clk 0:02:06.6]} 12. Rac1 {[%clk 0:02:57.1]} 12... Bxf3
{[%clk 0:02:01.8]} 13. Qxf3 {[%clk 0:02:55.5]} 13... Nd7 {[%clk 0:01:55.7]} 14.
Qf2 {[%clk 0:02:54.7]} 14... a6 {[%clk 0:01:45.6]} 15. Rfd1 {[%clk 0:02:48.8]}
15... Rac8 {[%clk 0:01:42.5]} 16. Bb1 {[%clk 0:02:39.7]} 16... Rfd8 {[%clk
0:01:09.3]} 17. Nd5 {[%clk 0:01:39.1]} 17... e6 {[%clk 0:00:56.5]} 18. Nb6
{[%clk 0:01:37.8]} 18... Nxb6 {[%clk 0:00:42.1]} 19. Bxb6 {[%clk 0:01:36.8]}
19... Qb4 {[%clk 0:00:42.7]} 20. Bxd8 {[%clk 0:01:33.9]} 20... Rxd8 {[%clk
0:00:43.6]} 21. Rd2 {[%clk 0:01:21.5]} 21... Rc8 {[%clk 0:00:42.1]} 22. Rcd1
{[%clk 0:01:13.7]} 22... Bf8 {[%clk 0:00:33.4]} 23. Qe2 {[%clk 0:01:00.7]} 23...
Na5 {[%clk 0:00:31.6]} 24. b3 {[%clk 0:00:59.9]} 24... Nc6 {[%clk 0:00:31.4]}
25. h3 {[%clk 0:00:47.9]} 25... Qb6+ {[%clk 0:00:31.3]} 26. Kh2 {[%clk
0:00:47.2]} 26... Qd8 {[%clk 0:00:29.7]} 27. e5 {[%clk 0:00:43.9]} 27... Qh4
{[%clk 0:00:29.4]} 28. g3 {[%clk 0:00:43.5]} 28... Qh6 {[%clk 0:00:27.8]} 29.
exd6 {[%clk 0:00:42.6]} 29... Rd8 {[%clk 0:00:28]} 30. d7 {[%clk 0:00:40.5]}
30... Be7 {[%clk 0:00:26.9]} 31. Be4 {[%clk 0:00:39.4]} 31... Qg7 {[%clk
0:00:17.3]} 32. Bxc6 {[%clk 0:00:37.3]} 32... bxc6 {[%clk 0:00:18.2]} 33. Qe5
{[%clk 0:00:36.7]} 33... Bf6 {[%clk 0:00:17.9]} 34. Qc7 {[%clk 0:00:36.2]} 34...
h5 {[%clk 0:00:17.1]} 35. h4 {[%clk 0:00:34.4]} 35... Kh7 {[%clk 0:00:17.5]} 36.
Re2 {[%clk 0:00:29.8]} 36... Qf8 {[%clk 0:00:13.8]} 37. Qd6 {[%clk 0:00:26.5]}
37... Be7 {[%clk 0:00:13.5]} 38. Qxc6 {[%clk 0:00:26.3]} 38... Qg7 {[%clk
0:00:13.7]} 39. Qxa6 {[%clk 0:00:24.8]} 39... Bf6 {[%clk 0:00:14.1]} 40. c5
{[%clk 0:00:21.3]} 40... e5 {[%clk 0:00:14.2]} 41. f5 {[%clk 0:00:13.9]} 41...
gxf5 {[%clk 0:00:12.6]} 42. c6 {[%clk 0:00:12.1]} 42... f4 {[%clk 0:00:12.1]}
43. Qd3+ {[%clk 0:00:11.6]} 43... Kh8 {[%clk 0:00:09.9]} 44. Qf3 {[%clk
0:00:10.3]} 44... Rg8 {[%clk 0:00:06.5]} 45. Qxh5+ {[%clk 0:00:08.1]} 45... Qh7
{[%clk 0:00:06.1]} 46. Qxh7+ {[%clk 0:00:08.2]} 46... Kxh7 {[%clk 0:00:07]} 47.
c7 {[%clk 0:00:07.9]} 47... fxg3+ {[%clk 0:00:06.9]} 48. Kg2 {[%clk 0:00:07.7]}
48... Bd8 {[%clk 0:00:07.8]} 49. c8=Q {[%clk 0:00:07.2]} 1-0

[Event "*** Titled Tuesday Blitz"]
[Site "Chess.com"]
[Date "2020.05.12"]
[Round "6"]
[White "Dinamo81"]
[Black "ural58"]
[Result "0-1"]
[WhiteElo "2609"]
[BlackElo "2483"]
[TimeControl "180+1"]
[EndTime "11:06:54 PDT"]
[Termination "ural58 won by resignation"]

1. d4 {[%clk 0:03:00.9]} 1... d5 {[%clk 0:02:59.4]} 2. Bf4 {[%clk 0:02:59.6]}
2... e6 {[%clk 0:02:59.3]} 3. e3 {[%clk 0:02:58.6]} 3... Bd6 {[%clk 0:03:00.2]}
4. Bg3 {[%clk 0:02:55.5]} 4... Qe7 {[%clk 0:02:59.3]} 5. Nc3 {[%clk 0:02:42.9]}
5... a6 {[%clk 0:02:56.6]} 6. e4 {[%clk 0:02:38]} 6... Bxg3 {[%clk 0:02:54.9]}
7. hxg3 {[%clk 0:02:37.2]} 7... dxe4 {[%clk 0:02:49.2]} 8. Nxe4 {[%clk
0:02:20.6]} 8... Nf6 {[%clk 0:02:50.1]} 9. Nxf6+ {[%clk 0:02:18.6]} 9... Qxf6
{[%clk 0:02:48.2]} 10. Nf3 {[%clk 0:02:17.6]} 10... Nc6 {[%clk 0:02:46.9]} 11.
Qd2 {[%clk 0:02:13.2]} 11... Bd7 {[%clk 0:02:46.8]} 12. O-O-O {[%clk 0:02:12.1]}
12... O-O-O {[%clk 0:02:46.8]} 13. Qg5 {[%clk 0:02:07.5]} 13... Ne7 {[%clk
0:02:19.2]} 14. Qxf6 {[%clk 0:02:04.9]} 14... gxf6 {[%clk 0:02:18.7]} 15. Bd3
{[%clk 0:02:04.4]} 15... h5 {[%clk 0:02:11.3]} 16. Rh4 {[%clk 0:01:52.7]} 16...
Ng6 {[%clk 0:02:04.9]} 17. Rh2 {[%clk 0:01:45.7]} 17... Bc6 {[%clk 0:01:40.7]}
18. c3 {[%clk 0:01:45.1]} 18... Bxf3 {[%clk 0:01:36.5]} 19. gxf3 {[%clk
0:01:45.2]} 19... f5 {[%clk 0:01:30.7]} 20. Rdh1 {[%clk 0:01:37.6]} 20... h4
{[%clk 0:01:30.1]} 21. gxh4 {[%clk 0:01:38.5]} 21... Nf4 {[%clk 0:01:30.2]} 22.
Kd2 {[%clk 0:01:25]} 22... Rh5 {[%clk 0:01:29.5]} 23. Rg1 {[%clk 0:01:18.8]}
23... Kd7 {[%clk 0:01:25.9]} 24. c4 {[%clk 0:01:07.8]} 24... Ke7 {[%clk
0:01:25.5]} 25. Ke3 {[%clk 0:01:07.9]} 25... Nxd3 {[%clk 0:01:20.9]} 26. Kxd3
{[%clk 0:01:08.8]} 26... c5 {[%clk 0:01:21.3]} 27. d5 {[%clk 0:01:06.6]} 27...
exd5 {[%clk 0:01:21.5]} 28. Rg5 {[%clk 0:00:59.9]} 28... dxc4+ {[%clk
0:01:20.2]} 29. Kxc4 {[%clk 0:00:59.2]} 29... Rxg5 {[%clk 0:01:15]} 30. hxg5
{[%clk 0:00:59.8]} 30... Rd2 {[%clk 0:01:15.3]} 31. Kc3 {[%clk 0:00:53.3]} 31...
Re2 {[%clk 0:01:12.8]} 32. a4 {[%clk 0:00:53]} 32... b5 {[%clk 0:01:08.3]} 33.
a5 {[%clk 0:00:52.3]} 33... Kd6 {[%clk 0:00:32.5]} 34. Rh6+ {[%clk 0:00:46.9]}
34... Re6 {[%clk 0:00:31.7]} 35. Rh7 {[%clk 0:00:45.2]} 35... Ke7 {[%clk
0:00:18.5]} 36. Rh8 {[%clk 0:00:42.7]} 36... f4 {[%clk 0:00:16.8]} 37. Rc8
{[%clk 0:00:41.1]} 37... Re5 {[%clk 0:00:16.6]} 38. Rc6 {[%clk 0:00:39.9]} 38...
Rxg5 {[%clk 0:00:16.7]} 39. Rxa6 {[%clk 0:00:39.9]} 39... Rg2 {[%clk 0:00:16.7]}
40. Rb6 {[%clk 0:00:37.6]} 40... Rxf2 {[%clk 0:00:17.2]} 41. Rxb5 {[%clk
0:00:37.9]} 41... Rxf3+ {[%clk 0:00:18.1]} 42. Kc4 {[%clk 0:00:34.9]} 42... Rf1
{[%clk 0:00:17.2]} 43. Rxc5 {[%clk 0:00:31.6]} 43... f3 {[%clk 0:00:18.1]} 44.
Rf5 {[%clk 0:00:31.1]} 44... Ke6 {[%clk 0:00:18.3]} 45. Rf4 {[%clk 0:00:30.4]}
45... f5 {[%clk 0:00:18.7]} 46. Kb5 {[%clk 0:00:29.5]} 46... Ke5 {[%clk
0:00:18.8]} 47. Rc4 {[%clk 0:00:29.5]} 47... f2 {[%clk 0:00:18.4]} 48. Rc2
{[%clk 0:00:29.5]} 48... Ke4 {[%clk 0:00:17.9]} 49. a6 {[%clk 0:00:29.7]} 49...
Ke3 {[%clk 0:00:17.8]} 50. a7 {[%clk 0:00:28.1]} 50... Ra1 {[%clk 0:00:17.8]}
51. Rc3+ {[%clk 0:00:25.2]} 51... Kf4 {[%clk 0:00:16.9]} 52. Rc4+ {[%clk
0:00:24.5]} 52... Kg3 {[%clk 0:00:16.6]} 53. Rc3+ {[%clk 0:00:24.2]} 53... Kg4
{[%clk 0:00:16.8]} 54. Rc1 {[%clk 0:00:14.6]} 54... Rxc1 {[%clk 0:00:14.7]} 55.
a8=Q {[%clk 0:00:14.3]} 55... f1=Q+ {[%clk 0:00:15.6]} 56. Kb6 {[%clk
0:00:14.6]} 56... Qf2+ {[%clk 0:00:15.3]} 0-1

[Event "*** Titled Tuesday Blitz"]
[Site "Chess.com"]
[Date "2020.05.12"]
[Round "6"]
[White "NikolaGry"]
[Black "noblerone"]
[Result "1-0"]
[WhiteElo "2630"]
[BlackElo "2417"]
[TimeControl "180+1"]
[EndTime "11:06:54 PDT"]
[Termination "NikolaGry won on time"]

1. b3 {[%clk 0:03:00.9]} 1... Nf6 {[%clk 0:02:58.2]} 2. Bb2 {[%clk 0:03:00.7]}
2... d5 {[%clk 0:02:58.5]} 3. Nf3 {[%clk 0:02:59.8]} 3... Bg4 {[%clk 0:02:56.5]}
4. e3 {[%clk 0:02:58.8]} 4... Nbd7 {[%clk 0:02:56.3]} 5. Be2 {[%clk 0:02:48.5]}
5... e6 {[%clk 0:02:55.5]} 6. c4 {[%clk 0:02:47.7]} 6... c6 {[%clk 0:02:55.4]}
7. h3 {[%clk 0:02:46.5]} 7... Bh5 {[%clk 0:02:55.4]} 8. Nc3 {[%clk 0:02:46.6]}
8... Bd6 {[%clk 0:02:54.9]} 9. O-O {[%clk 0:02:38.1]} 9... O-O {[%clk
0:02:51.5]} 10. d4 {[%clk 0:02:35.1]} 10... Ne4 {[%clk 0:02:37.8]} 11. Nxe4
{[%clk 0:02:31.6]} 11... dxe4 {[%clk 0:02:38.7]} 12. Nd2 {[%clk 0:02:30.2]}
12... Bxe2 {[%clk 0:02:38.3]} 13. Qxe2 {[%clk 0:02:29.8]} 13... f5 {[%clk
0:02:38.5]} 14. Rad1 {[%clk 0:02:18]} 14... Qh4 {[%clk 0:02:35.6]} 15. d5 {[%clk
0:02:06.4]} 15... exd5 {[%clk 0:02:08]} 16. cxd5 {[%clk 0:02:05.9]} 16... Be5
{[%clk 0:01:54.7]} 17. dxc6 {[%clk 0:01:57.2]} 17... bxc6 {[%clk 0:01:51.3]} 18.
Qc4+ {[%clk 0:01:15.9]} 18... Kh8 {[%clk 0:01:50.9]} 19. Nf3 {[%clk 0:01:00.1]}
19... Qe7 {[%clk 0:01:28.1]} 20. Rxd7 {[%clk 0:00:56.2]} 20... Qxd7 {[%clk
0:01:25.3]} 21. Nxe5 {[%clk 0:00:56.2]} 21... Qd2 {[%clk 0:01:22.1]} 22. Bc3
{[%clk 0:00:50.3]} 22... Qd5 {[%clk 0:01:21.1]} 23. Bd4 {[%clk 0:00:42.6]} 23...
Qxc4 {[%clk 0:00:58.2]} 24. Nxc4 {[%clk 0:00:42]} 24... Rfd8 {[%clk 0:00:55]}
25. b4 {[%clk 0:00:40.3]} 25... Kg8 {[%clk 0:00:53.4]} 26. Rc1 {[%clk
0:00:39.5]} 26... h6 {[%clk 0:00:49.1]} 27. Na5 {[%clk 0:00:37.6]} 27... Rd6
{[%clk 0:00:42.8]} 28. Nxc6 {[%clk 0:00:34.2]} 28... Kh7 {[%clk 0:00:43]} 29. a4
{[%clk 0:00:29.7]} 29... a6 {[%clk 0:00:40.7]} 30. Rc5 {[%clk 0:00:26.8]} 30...
Rc8 {[%clk 0:00:38.5]} 31. b5 {[%clk 0:00:24.5]} 31... axb5 {[%clk 0:00:39.4]}
32. axb5 {[%clk 0:00:24.3]} 32... Rc7 {[%clk 0:00:39.5]} 33. Rxf5 {[%clk
0:00:23.6]} 33... Rb7 {[%clk 0:00:38.7]} 34. Rc5 {[%clk 0:00:23.4]} 34... Rdd7
{[%clk 0:00:30.6]} 35. g4 {[%clk 0:00:20.9]} 35... Rf7 {[%clk 0:00:28.6]} 36.
Ne5 {[%clk 0:00:20.5]} 36... Rfe7 {[%clk 0:00:24.7]} 37. Nc4 {[%clk 0:00:20.4]}
37... Rec7 {[%clk 0:00:22.5]} 38. b6 {[%clk 0:00:19.5]} 38... Rf7 {[%clk
0:00:15.4]} 39. Re5 {[%clk 0:00:18.5]} 39... Rf6 {[%clk 0:00:13.7]} 40. Nd2
{[%clk 0:00:18.1]} 40... Rd6 {[%clk 0:00:11.2]} 41. Nxe4 {[%clk 0:00:17.8]}
41... Rc6 {[%clk 0:00:10.9]} 42. Kg2 {[%clk 0:00:17.5]} 42... Rcxb6 {[%clk
0:00:09.6]} 43. Bxb6 {[%clk 0:00:16.9]} 43... Rxb6 {[%clk 0:00:10.5]} 44. h4
{[%clk 0:00:17.1]} 44... Rg6 {[%clk 0:00:10.3]} 45. g5 {[%clk 0:00:16.6]} 45...
hxg5 {[%clk 0:00:09.4]} 46. hxg5 {[%clk 0:00:16.7]} 46... Ra6 {[%clk 0:00:09]}
47. Kg3 {[%clk 0:00:17.1]} 47... Kg6 {[%clk 0:00:09.2]} 48. Rd5 {[%clk
0:00:17.2]} 48... Kh5 {[%clk 0:00:08]} 49. f3 {[%clk 0:00:16.4]} 49... Ra1
{[%clk 0:00:05.2]} 50. Rd7 {[%clk 0:00:16.4]} 1-0

[Event "*** Titled Tuesday Blitz"]
[Site "Chess.com"]
[Date "2020.05.12"]
[Round "6"]
[White "MITerryble"]
[Black "GjakanTati"]
[Result "0-1"]
[WhiteElo "2827"]
[BlackElo "2654"]
[TimeControl "180+1"]
[EndTime "11:06:55 PDT"]
[Termination "GjakanTati won by resignation"]

1. e4 {[%clk 0:03:00.9]} 1... e5 {[%clk 0:02:59.7]} 2. Nf3 {[%clk 0:03:01.1]}
2... Nc6 {[%clk 0:02:59.9]} 3. c3 {[%clk 0:03:01.5]} 3... Nf6 {[%clk 0:02:57]}
4. d4 {[%clk 0:03:01.7]} 4... exd4 {[%clk 0:02:55.8]} 5. e5 {[%clk 0:03:02.6]}
5... Nd5 {[%clk 0:02:55.5]} 6. Qb3 {[%clk 0:03:03.1]} 6... Nb6 {[%clk
0:02:54.6]} 7. cxd4 {[%clk 0:03:03.3]} 7... d5 {[%clk 0:02:53.8]} 8. Bb5 {[%clk
0:03:02.6]} 8... Be7 {[%clk 0:02:50.4]} 9. O-O {[%clk 0:02:58.4]} 9... O-O
{[%clk 0:02:50]} 10. Nc3 {[%clk 0:02:57.7]} 10... f6 {[%clk 0:02:45.4]} 11. Re1
{[%clk 0:02:39.2]} 11... Bg4 {[%clk 0:02:42.8]} 12. Bxc6 {[%clk 0:02:26]} 12...
bxc6 {[%clk 0:02:42.1]} 13. exf6 {[%clk 0:02:26.4]} 13... Bxf6 {[%clk
0:02:42.3]} 14. Ne5 {[%clk 0:02:26.8]} 14... Bxe5 {[%clk 0:02:28]} 15. dxe5
{[%clk 0:02:25.9]} 15... Qh4 {[%clk 0:02:22.5]} 16. Be3 {[%clk 0:02:02.3]} 16...
Nc4 {[%clk 0:02:01.8]} 17. Bc5 {[%clk 0:02:02.4]} 17... Rf5 {[%clk 0:02:00.3]}
18. Ne2 {[%clk 0:01:49.9]} 18... Re8 {[%clk 0:01:38.5]} 19. Nd4 {[%clk
0:01:45.3]} 19... Qxf2+ {[%clk 0:01:33.3]} 20. Kh1 {[%clk 0:01:45.3]} 20...
Rfxe5 {[%clk 0:01:13.7]} 21. Rxe5 {[%clk 0:01:44]} 21... Nxe5 {[%clk 0:01:13.3]}
22. Ne6 {[%clk 0:01:33.2]} 22... Qf7 {[%clk 0:01:10.7]} 23. Nd4 {[%clk
0:01:22.7]} 23... Nd7 {[%clk 0:01:06.1]} 24. Bxa7 {[%clk 0:01:06.7]} 24... c5
{[%clk 0:01:03.1]} 25. Qg3 {[%clk 0:01:06.7]} 25... cxd4 {[%clk 0:00:53.3]} 26.
Qxg4 {[%clk 0:01:07.1]} 26... c5 {[%clk 0:00:53.1]} 27. b4 {[%clk 0:01:05.9]}
27... Ne5 {[%clk 0:00:52.5]} 28. Qg5 {[%clk 0:00:40.8]} 28... Qxa7 {[%clk
0:00:51]} 29. Re1 {[%clk 0:00:41.3]} 29... Qf7 {[%clk 0:00:45.4]} 30. h3 {[%clk
0:00:40.1]} 30... Ng6 {[%clk 0:00:41.2]} 31. Rxe8+ {[%clk 0:00:39]} 31... Qxe8
{[%clk 0:00:42.1]} 32. Qxd5+ {[%clk 0:00:39.5]} 32... Qf7 {[%clk 0:00:37.3]} 33.
Qd8+ {[%clk 0:00:39]} 33... Nf8 {[%clk 0:00:36]} 34. bxc5 {[%clk 0:00:38.4]}
34... Qf1+ {[%clk 0:00:33.3]} 35. Kh2 {[%clk 0:00:38.1]} 35... Qf4+ {[%clk
0:00:33.8]} 36. Kh1 {[%clk 0:00:37.7]} 36... Qc1+ {[%clk 0:00:33.4]} 37. Kh2
{[%clk 0:00:36.3]} 37... Qxc5 {[%clk 0:00:33.9]} 38. a4 {[%clk 0:00:34.5]} 38...
Kf7 {[%clk 0:00:32.8]} 39. a5 {[%clk 0:00:33.3]} 39... Qe5+ {[%clk 0:00:26.2]}
40. Kh1 {[%clk 0:00:32.1]} 40... Ne6 {[%clk 0:00:21.9]} 41. Qd7+ {[%clk
0:00:30.8]} 41... Kf6 {[%clk 0:00:22.1]} 42. a6 {[%clk 0:00:31.5]} 42... Qc7
{[%clk 0:00:20.5]} 43. Qd5 {[%clk 0:00:26.4]} 43... Qc1+ {[%clk 0:00:15.4]} 44.
Kh2 {[%clk 0:00:26.8]} 44... Qf4+ {[%clk 0:00:15.7]} 45. Kh1 {[%clk 0:00:26.9]}
45... Qf1+ {[%clk 0:00:16.1]} 46. Kh2 {[%clk 0:00:26.7]} 46... Qxa6 {[%clk
0:00:16.6]} 47. h4 {[%clk 0:00:21.1]} 47... Ke7 {[%clk 0:00:15.1]} 48. Qe4
{[%clk 0:00:19.4]} 48... Qd6+ {[%clk 0:00:15.4]} 49. Kg1 {[%clk 0:00:19.7]}
49... d3 {[%clk 0:00:16.3]} 50. Qb7+ {[%clk 0:00:19.3]} 50... Qd7 {[%clk
0:00:15]} 51. Qb4+ {[%clk 0:00:18.8]} 51... Kf7 {[%clk 0:00:15.3]} 52. Qd2
{[%clk 0:00:18]} 52... Qd4+ {[%clk 0:00:13.7]} 53. Kh1 {[%clk 0:00:17.4]} 53...
Qe4 {[%clk 0:00:13.7]} 54. h5 {[%clk 0:00:16.6]} 54... Qe2 {[%clk 0:00:13]} 55.
Qb4 {[%clk 0:00:16.5]} 55... Qxh5+ {[%clk 0:00:12.4]} 56. Kg1 {[%clk 0:00:16.3]}
56... Qc5+ {[%clk 0:00:12.4]} 0-1

[Event "*** Titled Tuesday Blitz"]
[Site "Chess.com"]
[Date "2020.05.12"]
[Round "6"]
[White "Kaua18"]
[Black "Grineva_Marianna"]
[Result "0-1"]
[WhiteElo "2308"]
[BlackElo "2130"]
[TimeControl "180+1"]
[EndTime "11:06:55 PDT"]
[Termination "Grineva_Marianna won on time"]

1. e4 {[%clk 0:03:00.9]} 1... d6 {[%clk 0:03:00]} 2. d4 {[%clk 0:02:49.9]} 2...
Nf6 {[%clk 0:03:00.1]} 3. Nc3 {[%clk 0:02:49.9]} 3... g6 {[%clk 0:03:00.7]} 4.
Be3 {[%clk 0:02:47.8]} 4... a6 {[%clk 0:02:57.6]} 5. f3 {[%clk 0:02:47]} 5... b5
{[%clk 0:02:56.4]} 6. Qd2 {[%clk 0:02:44.1]} 6... Bb7 {[%clk 0:02:55.9]} 7. Nge2
{[%clk 0:02:43.5]} 7... Nbd7 {[%clk 0:02:55.5]} 8. h4 {[%clk 0:02:43.3]} 8...
Nb6 {[%clk 0:02:53.9]} 9. Nc1 {[%clk 0:02:40.6]} 9... h5 {[%clk 0:02:27]} 10.
Be2 {[%clk 0:02:33.2]} 10... Qd7 {[%clk 0:02:04.1]} 11. a4 {[%clk 0:02:28.7]}
11... Nc4 {[%clk 0:02:00.8]} 12. Bxc4 {[%clk 0:02:19.2]} 12... bxc4 {[%clk
0:02:01.7]} 13. Qf2 {[%clk 0:02:05.8]} 13... Bh6 {[%clk 0:01:54.1]} 14. N1e2
{[%clk 0:02:05]} 14... Bxe3 {[%clk 0:01:46.4]} 15. Qxe3 {[%clk 0:02:05.9]} 15...
Rb8 {[%clk 0:01:44.8]} 16. a5 {[%clk 0:02:01.6]} 16... Ba8 {[%clk 0:01:39.3]}
17. Na4 {[%clk 0:02:00.8]} 17... Rb4 {[%clk 0:01:36.2]} 18. b3 {[%clk
0:01:59.7]} 18... cxb3 {[%clk 0:01:34.3]} 19. cxb3 {[%clk 0:02:00.6]} 19... O-O
{[%clk 0:01:29.9]} 20. O-O {[%clk 0:01:54.9]} 20... Qb5 {[%clk 0:01:29.1]} 21.
Rfb1 {[%clk 0:01:46.4]} 21... Qxa5 {[%clk 0:01:22.5]} 22. Nec3 {[%clk
0:01:34.2]} 22... e5 {[%clk 0:01:14.7]} 23. d5 {[%clk 0:01:24.6]} 23... Rfb8
{[%clk 0:01:09.9]} 24. Ra3 {[%clk 0:01:21.2]} 24... c5 {[%clk 0:01:00.7]} 25.
Qd3 {[%clk 0:01:15.8]} 25... Rd4 {[%clk 0:00:56.9]} 26. Qc2 {[%clk 0:01:15.5]}
26... Qb4 {[%clk 0:00:51.2]} 27. Ra2 {[%clk 0:01:14.4]} 27... Kg7 {[%clk
0:00:45.2]} 28. Ne2 {[%clk 0:01:13.1]} 28... Nxe4 {[%clk 0:00:32.7]} 29. fxe4
{[%clk 0:01:01.9]} 29... Rxe4 {[%clk 0:00:31.1]} 30. g3 {[%clk 0:00:52.5]} 30...
Bxd5 {[%clk 0:00:27.5]} 31. Nac3 {[%clk 0:00:31.3]} 31... Rxe2 {[%clk
0:00:18.6]} 32. Nxe2 {[%clk 0:00:21.6]} 32... Be4 {[%clk 0:00:18.6]} 33. Qd2
{[%clk 0:00:18.6]} 33... Bxb1 {[%clk 0:00:18.2]} 34. Qxb4 {[%clk 0:00:17.3]}
34... Rxb4 {[%clk 0:00:19]} 35. Rxa6 {[%clk 0:00:17.3]} 35... Bd3 {[%clk
0:00:18.7]} 36. Rxd6 {[%clk 0:00:15.9]} 36... Bxe2 {[%clk 0:00:18.7]} 37. Rd5
{[%clk 0:00:16.1]} 37... Rxb3 {[%clk 0:00:18]} 38. Rxc5 {[%clk 0:00:15.5]} 38...
e4 {[%clk 0:00:18.3]} 39. Re5 {[%clk 0:00:14.6]} 39... Bf3 {[%clk 0:00:18.8]}
40. Kf2 {[%clk 0:00:14.3]} 40... Rb2+ {[%clk 0:00:19.1]} 41. Ke3 {[%clk
0:00:14.3]} 41... Rg2 {[%clk 0:00:19.2]} 42. Kf4 {[%clk 0:00:14]} 42... Rf2
{[%clk 0:00:18.7]} 43. Ke3 {[%clk 0:00:13.5]} 43... Rf1 {[%clk 0:00:18.6]} 44.
Ra5 {[%clk 0:00:12.5]} 44... Rh1 {[%clk 0:00:16.9]} 45. Kf4 {[%clk 0:00:11.1]}
45... Re1 {[%clk 0:00:17]} 46. Re5 {[%clk 0:00:07.5]} 46... Bg4 {[%clk 0:00:16]}
47. Re7 {[%clk 0:00:05.4]} 47... e3 {[%clk 0:00:15.4]} 48. Re5 {[%clk
0:00:02.1]} 48... e2 {[%clk 0:00:15.5]} 49. Ke3 {[%clk 0:00:01.9]} 49... Rf1
{[%clk 0:00:15.7]} 50. Kd2 {[%clk 0:00:02]} 50... e1=Q+ {[%clk 0:00:14.8]} 51.
Rxe1 {[%clk 0:00:02.9]} 51... Rxe1 {[%clk 0:00:15.6]} 52. Kxe1 {[%clk
0:00:02.7]} 52... Kf6 {[%clk 0:00:16.3]} 0-1